bitfinex/quotes_ETHUSD_20241203
["timestamp","ask_amount","ask_price","bid_price","bid_amount"]
[1733189147286,1.3112581,3638.6,3638.5,0.0056]
[1733189147485,2.26164868,3638.6,3638.5,0.0056]
[1733189147722,2.51810106,3638.6,3638.5,0.0056]
[1733189148286,2.51812136,3638.6,3638.5,0.0056]
[1733189148496,3.06812136,3638.6,3638.5,0.0056]
[1733189148697,0.7546,3638.4,3636.9,2.65137794]
[1733189148940,0.95047348,3638.3,3636.9,2.65137794]
[1733189149087,2.35727406,3638.3,3636.9,2.65137794]
[1733189149426,1.20692586,3638.2,3636.9,2.65137794]
[1733189149634,0.25652529,3638.3,3637.3,2.65137794]
[1733189149927,0.54422216,3638.1,3637.3,2.94451573]
[1733189150224,0.54422216,3638.1,3637.3,2.67937794]
[1733189150730,0.54422216,3638.1,3637.3,0.028]
[1733189151601,0.55,3638.0,3637.3,0.028]
[1733189151793,0.8131,3637.9,3637.3,0.028]
[1733189152690,0.55,3637.8,3637.3,0.028]
[1733189153087,0.16195999,3637.7,3637.3,0.028]
[1733189154891,0.41845984,3637.7,3637.3,0.028]
[1733189155087,0.8228,3637.5,3637.3,0.028]
[1733189155390,0.55182583,3637.4,3637.3,0.028]
[1733189157641,1.33782583,3637.4,3637.3,0.028]
[1733189157805,1.88782583,3637.4,3637.3,0.028]
[1733189158014,2.07660841,3637.4,3637.3,0.028]
[1733189158818,2.33331016,3637.4,3637.3,0.028]
[1733189159207,2.07660841,3637.4,3637.3,0.028]
[1733189160106,0.55,3637.3,3635.8,3.0]
[1733189160311,0.25670175,3637.2,3635.8,3.0]
[1733189160509,0.49003277,3637.1,3635.8,3.0]
[1733189160706,0.23333102,3637.1,3635.8,3.0]
[1733189161030,0.49003277,3637.1,3635.8,3.0]
[1733189161233,0.23333102,3637.1,3635.8,3.0]
[1733189162149,0.23333102,3637.1,3635.8,3.02737775]
[1733189163022,0.23333102,3637.1,3635.8,3.6191111]
[1733189163752,0.23333102,3637.1,3636.1,2.65137794]
[1733189163926,0.97478258,3637.4,3636.1,2.65137794]
[1733189163927,0.55,3637.3,3636.1,2.65137794]
[1733189164456,0.18878258,3637.4,3636.2,0.02749978]
[1733189164605,1.05760175,3637.7,3636.1,2.67875569]
[1733189164946,0.54501416,3637.2,3636.1,2.67875569]
[1733189166838,0.8009,3637.7,3636.5,2.65137794]
[1733189167018,0.25649746,3638.0,3636.9,2.65137794]
[1733189167019,0.56246386,3637.6,3636.9,2.65137794]
[1733189167208,0.56246386,3637.6,3637.0,0.02749484]
[1733189167405,0.56246386,3637.6,3636.9,2.94664305]
[1733189168235,0.56246386,3637.6,3637.0,0.02749191]
[1733189169045,0.2564902,3638.5,3637.3,2.65137794]
[1733189169253,0.7804,3638.6,3637.3,0.02737775]
[1733189169563,0.55767483,3638.3,3637.3,0.02737775]
[1733189170037,0.73252303,3638.3,3637.3,0.02737775]
[1733189170243,0.73252303,3638.3,3637.3,2.67875569]
[1733189170453,0.55767483,3638.3,3637.4,0.02749125]
[1733189170665,0.66689814,3638.7,3637.7,2.65137794]
[1733189170815,0.25650854,3638.6,3637.7,2.65137794]
[1733189171023,0.79745358,3638.5,3637.7,2.65137794]
[1733189171358,0.25649948,3638.8,3638.1,2.65137794]
[1733189171525,0.25649948,3638.7,3638.1,2.65137794]
[1733189171731,1.55706131,3639.0,3638.1,2.65137794]
[1733189171732,0.25649948,3638.6,3638.1,2.65137794]
[1733189171958,0.25649948,3638.5,3638.1,2.67875569]
[1733189172166,0.25649135,3639.0,3638.1,2.94937993]
[1733189172362,0.66687752,3639.0,3638.5,2.65137794]
[1733189172656,0.25649135,3639.2,3638.6,0.02748018]
[1733189172816,0.25649135,3639.1,3638.6,0.02748018]
[1733189173015,0.25649135,3639.3,3638.6,0.02748018]
[1733189173245,0.25649135,3639.2,3638.6,0.02748018]
[1733189173455,0.25649135,3639.3,3638.6,0.02748018]
[1733189173661,0.25649135,3639.2,3638.6,0.02748018]
[1733189173860,0.25649135,3639.3,3638.6,0.27062359]
[1733189174027,0.25649135,3639.7,3638.6,3.27062359]
[1733189174229,0.25649135,3639.6,3638.6,3.27062359]
[1733189174546,1.55704032,3639.9,3638.6,3.27062359]
[1733189174547,0.25649135,3639.5,3638.6,3.27062359]
[1733189174714,1.55704032,3640.0,3638.6,3.27062359]
[1733189174715,0.25649135,3639.8,3638.6,3.27062359]
[1733189174917,0.25649135,3639.7,3638.6,3.27062359]
[1733189175150,0.25649135,3639.6,3638.6,3.27062359]
[1733189175359,0.25649135,3639.7,3638.9,2.65137794]
[1733189175666,0.56267968,3639.7,3638.9,2.67875569]
[1733189176121,0.81882009,3639.7,3638.9,2.67875569]
[1733189176316,0.25614041,3639.9,3639.3,2.65137794]
[1733189176553,0.25614041,3639.9,3639.3,2.67875569]
[1733189176784,0.80346828,3640.0,3639.3,2.67875569]
[1733189176988,0.80346828,3640.0,3639.3,0.02737775]
[1733189177158,0.8017,3639.8,3639.3,0.02737775]
[1733189177361,0.75832078,3639.7,3639.3,0.02737775]
[1733189177659,0.25614041,3639.6,3639.3,0.02737775]
[1733189178156,0.75832078,3639.7,3639.3,0.02737775]
[1733189178358,0.50218037,3639.7,3639.3,0.02737775]
[1733189178945,0.75832078,3639.7,3639.3,0.02737775]
[1733189179147,0.32566749,3639.6,3639.3,0.02737775]
[1733189179468,0.54732787,3640.0,3639.4,2.65137794]
[1733189179996,0.25580806,3640.3,3639.4,2.65137794]
[1733189180147,1.14665415,3640.6,3639.4,2.65137794]
[1733189180354,2.09521108,3640.6,3639.4,2.65137794]
[1733189180549,0.80580806,3640.5,3639.4,2.65137794]
[1733189180856,0.55858977,3640.2,3639.4,2.65137794]
[1733189184414,0.55858977,3640.2,3639.3,0.02737775]
[1733189184570,0.7822,3640.1,3639.3,0.02737775]
[1733189189812,0.55,3640.0,3639.3,0.02737775]
[1733189190373,0.8144,3640.0,3639.3,0.02737775]
[1733189190686,0.74229898,3639.9,3639.3,0.02737775]
[1733189191707,0.56022284,3639.4,3639.3,0.02737775]
[1733189196815,0.81646703,3639.4,3639.3,0.02737775]
[1733189198302,1.36705841,3639.4,3639.3,0.02737775]
[1733189198686,1.77799533,3639.4,3639.3,0.02737775]
[1733189198887,1.40579486,3639.4,3639.3,0.02737775]
[1733189199512,2.78359486,3639.4,3639.3,0.02737775]
[1733189199922,0.55,3639.3,3638.2,2.65137794]
[1733189200090,0.66777249,3639.2,3638.3,0.02748252]
[1733189200288,0.66777249,3639.1,3638.3,0.02748252]
[1733189200491,0.66777249,3639.0,3638.4,0.26788605]
[1733189200719,0.25683557,3638.9,3638.5,0.02748064]
[1733189200923,0.25683557,3638.8,3638.5,0.02748064]
[1733189201222,0.41137891,3639.1,3638.5,0.02748064]
[1733189201423,0.66858833,3639.0,3638.5,0.02988064]
[1733189201713,0.25720942,3638.9,3638.5,0.02988064]
[1733189202076,0.25720942,3638.8,3638.5,0.02988064]
[1733189202276,0.25726953,3638.7,3638.5,0.02988064]
[1733189202500,0.56022284,3639.4,3638.5,0.02988064]
[1733189202813,0.25726917,3639.3,3638.5,0.02988064]
[1733189202988,0.25726917,3639.2,3638.5,0.3247951]
[1733189203322,0.25726917,3639.1,3638.5,0.29731446]
[1733189203526,0.25726917,3639.0,3638.5,0.29731446]
[1733189203690,0.25726917,3638.9,3638.6,2.65137794]
[1733189204013,0.7566,3640.1,3638.6,2.65137794]
[1733189204217,0.25726427,3640.0,3639.0,2.65137794]
[1733189204516,0.25726427,3639.9,3639.0,2.65137794]
[1733189204722,0.80870502,3639.8,3639.1,0.02747604]
[1733189204882,0.25726427,3639.7,3639.1,0.02987604]
[1733189205079,0.55144075,3639.8,3639.1,0.02987604]
[1733189205080,0.25726427,3639.6,3639.1,0.02987604]
[1733189205280,0.25724901,3639.5,3639.1,0.0024]
[1733189205481,0.25724901,3639.4,3639.1,0.02987608]
[1733189205707,0.25724901,3639.3,3639.1,0.02987608]
[1733189205891,0.25724901,3639.2,3639.1,0.32105605]
[1733189206738,0.25724901,3639.2,3639.1,0.32105632]
[1733189206941,0.25724901,3639.2,3639.1,0.56837997]
[1733189207232,0.25724901,3639.2,3639.1,0.0024]
[1733189209003,0.54626679,3639.7,3639.1,0.0024]
[1733189209297,0.25726155,3639.6,3639.1,0.0024]
[1733189209509,0.25726155,3639.5,3639.1,0.0024]
[1733189209707,0.25726155,3639.4,3639.1,0.0024]
[1733189209936,0.54626679,3639.7,3639.1,0.0024]
[1733189210094,0.25726681,3639.6,3639.1,0.0024]
[1733189210298,0.25726681,3639.5,3639.1,0.0024]
[1733189210599,0.25726681,3639.4,3639.1,0.0024]
[1733189210800,0.54626679,3639.7,3639.1,0.0024]
[1733189211119,0.25727612,3639.6,3639.1,0.0024]
[1733189211321,0.25727612,3639.5,3639.1,0.0024]
[1733189211527,0.25727612,3639.4,3639.1,0.0024]
[1733189211829,0.25727612,3639.3,3639.1,0.0024]
[1733189211998,0.54626679,3639.7,3639.1,0.0024]
[1733189212330,0.25730469,3639.6,3639.1,0.0024]
[1733189212530,0.25730469,3639.5,3639.1,0.0024]
[1733189212837,0.54626679,3639.7,3639.1,0.0024]
[1733189213022,0.25732827,3639.6,3639.1,0.0024]
[1733189213197,0.25732827,3639.5,3639.1,0.0024]
[1733189213399,0.25732827,3639.4,3639.1,0.0024]
[1733189213723,0.25732827,3639.3,3639.1,0.0024]
[1733189213922,0.25732827,3639.2,3639.1,0.0024]
[1733189215410,0.95238331,3639.2,3639.1,0.0024]
[1733189215603,1.20980015,3639.2,3639.1,0.0024]
[1733189215817,0.25741684,3639.2,3639.1,0.0024]
[1733189216508,1.21022133,3639.2,3639.1,0.0024]
[1733189216943,0.25741684,3639.2,3639.1,0.0024]
[1733189217139,1.21025067,3639.2,3639.1,0.0024]
[1733189217556,2.63954116,3639.2,3639.1,0.0024]
[1733189218047,1.21025067,3639.2,3639.1,0.0024]
[1733189218418,0.25741684,3639.2,3639.1,0.0024]
[1733189218626,1.14665415,3639.5,3639.1,0.0024]
[1733189218823,2.38292171,3639.4,3639.1,0.0024]
[1733189219018,1.14665415,3639.5,3639.1,0.0024]
[1733189219208,0.95316458,3639.4,3639.1,0.0024]
[1733189219435,1.14665415,3639.5,3639.1,0.0024]
[1733189219643,0.95318017,3639.4,3639.1,0.0024]
[1733189219821,1.14665415,3639.5,3639.2,2.65137794]
[1733189220031,0.95318328,3639.4,3639.2,2.65137794]
[1733189220207,1.14665415,3639.6,3639.2,2.65137794]
[1733189220537,2.38293745,3639.5,3639.2,2.65137794]
[1733189220737,0.95317498,3639.4,3639.2,2.65137794]
[1733189221048,1.42974096,3639.5,3639.2,2.65137794]
[1733189221210,1.14665415,3639.6,3639.2,2.65137794]
[1733189221410,2.38290411,3639.5,3639.2,2.65137794]
[1733189221642,1.09665415,3639.6,3639.2,2.65137794]
[1733189221822,0.95313446,3639.5,3639.2,2.65137794]
[1733189222154,1.09665415,3639.6,3639.2,2.65137794]
[1733189222311,2.3828964,3639.5,3639.2,2.65137794]
[1733189222508,2.3828964,3639.5,3639.1,0.0024]
[1733189222509,1.74585856,3639.4,3639.1,0.0024]
[1733189222815,2.38296198,3639.3,3639.1,0.0024]
[1733189223010,2.38301584,3639.2,3639.1,0.0024]
[1733189223652,2.3831974,3639.2,3639.1,0.0024]
[1733189224021,4.10317863,3639.2,3639.1,0.0024]
[1733189224326,5.05376044,3639.2,3639.1,0.0024]
[1733189224539,3.33377921,3639.2,3639.1,0.0024]
[1733189225144,5.62708751,3639.2,3639.1,0.0024]
[1733189225855,8.12229632,3639.2,3639.1,0.0024]
[1733189226012,0.7647,3639.1,3637.5,2.65137794]
[1733189226207,1.7293993,3638.4,3637.5,2.65137794]
[1733189226464,1.7293993,3638.2,3637.3,0.2748]
[1733189226613,0.95327896,3638.1,3637.3,0.2748]
[1733189226823,0.95327896,3638.0,3637.3,0.2748]
[1733189227028,0.95327896,3637.9,3637.4,0.29261779]
[1733189227225,1.7293993,3638.2,3637.4,0.29261779]
[1733189227426,0.95256915,3638.1,3637.4,0.29261779]
[1733189227654,0.95256915,3638.0,3637.4,0.32061779]
[1733189227853,1.7293993,3638.2,3637.4,0.32061779]
[1733189228118,0.95260306,3638.1,3637.5,0.29719957]
[1733189228324,1.7293993,3638.3,3637.5,0.29719957]
[1733189228523,0.95222843,3638.2,3637.5,0.29719957]
[1733189228724,0.95222843,3638.1,3637.4,0.028]
[1733189228953,2.28784613,3638.3,3637.4,0.028]
[1733189228954,0.95222843,3638.0,3637.4,0.028]
[1733189229136,2.28784613,3638.3,3637.4,0.028]
[1733189229349,2.68131183,3638.2,3637.4,0.028]
[1733189229567,2.68131183,3638.1,3637.4,0.028]
[1733189229767,0.95191253,3638.0,3637.4,0.028]
[1733189229970,1.50647497,3638.0,3637.4,0.028]
[1733189230175,0.55,3637.8,3637.4,0.028]
[1733189230379,0.55,3637.6,3635.6,2.65137794]
[1733189230544,0.55,3637.6,3635.0,0.1]
[1733189230545,0.55,3637.4,3635.7,0.23764451]
[1733189230748,2.02184119,3637.3,3635.8,2.65137794]
[1733189230929,1.38203658,3637.2,3635.9,0.26513779]
[1733189231129,0.68675271,3637.2,3635.9,0.26513779]
[1733189231350,0.43012405,3637.2,3635.9,0.26513779]
[1733189231558,0.43012405,3637.2,3635.8,2.65137794]
[1733189231559,0.55,3637.1,3635.8,2.65137794]
[1733189231729,0.43012405,3637.2,3635.9,0.02737775]
[1733189231730,0.55,3636.9,3635.9,0.02737775]
[1733189233657,0.54567322,3636.7,3635.9,0.02737775]
[1733189234259,0.8145,3636.5,3635.9,0.02737775]
[1733189235380,0.55,3636.4,3635.9,0.02737775]
[1733189235534,1.3701,3636.2,3635.9,0.02737775]
[1733189236285,1.85968058,3636.0,3635.9,0.02737775]
[1733189236432,1.3112,3635.9,3634.3,0.1573828]
[1733189237255,0.55,3635.7,3634.3,0.1573828]
[1733189237834,0.55,3635.7,3634.3,0.1597828]
[1733189238044,0.55,3635.5,3634.3,0.1597828]
[1733189239572,0.55,3635.3,3634.3,0.1597828]
[1733189239867,0.55,3635.1,3634.3,0.1597828]
[1733189240085,0.55864382,3634.8,3634.3,0.1597828]
[1733189240285,0.55,3635.1,3634.3,0.1597828]
[1733189240447,0.13781,3635.0,3634.3,0.1597828]
[1733189240643,0.67492305,3635.0,3634.3,0.1597828]
[1733189243726,0.55,3634.9,3634.3,0.1597828]
[1733189244127,0.67492305,3635.0,3634.3,0.1597828]
[1733189244128,0.55,3634.7,3634.3,0.1597828]
[1733189244336,0.7645,3634.8,3634.3,0.1597828]
[1733189244578,0.67492305,3635.0,3634.3,0.1597828]
[1733189245234,0.1439423,3634.9,3634.3,0.1597828]
[1733189246182,0.55,3634.8,3634.3,0.1597828]
[1733189246354,0.1439423,3634.9,3634.3,0.1597828]
[1733189246553,0.55,3634.8,3634.3,0.1597828]
[1733189246938,0.53711305,3635.0,3634.3,0.1597828]
[1733189247135,0.7778,3635.6,3634.6,2.65137794]
[1733189247379,0.7778,3636.5,3635.0,2.65137794]
[1733189247537,0.7778,3636.5,3635.0,2.65377794]
[1733189248088,0.7778,3636.5,3635.4,2.65137794]
[1733189248284,0.7778,3636.5,3635.5,0.02750501]
[1733189248585,1.32881141,3636.4,3635.4,2.65137794]
[1733189248888,1.32881141,3636.4,3635.4,2.65377794]
[1733189249737,0.55,3636.3,3635.4,2.65377794]
[1733189250880,0.21494502,3637.8,3635.4,2.65377794]
[1733189250881,0.8223,3636.7,3635.8,2.65137794]
[1733189251042,0.55,3636.6,3635.8,2.65377794]
[1733189251238,1.09718507,3636.6,3635.8,2.65377794]
[1733189251435,1.28913358,3636.6,3635.8,2.65377794]
[1733189254589,0.8076,3637.7,3636.2,2.65137794]
[1733189254892,0.54410233,3637.0,3636.3,0.02749575]
[1733189255065,0.54410233,3637.0,3636.4,0.0274926]
[1733189255391,0.8076,3638.1,3636.4,0.0274926]
[1733189255392,0.25598547,3638.0,3636.4,0.0274926]
[1733189255691,0.25598547,3638.0,3637.5,2.65137794]
[1733189255897,0.54267107,3637.9,3637.5,2.65377794]
[1733189256062,0.21494502,3639.4,3637.5,2.65377794]
[1733189256063,0.25610933,3638.4,3637.5,5.30515588]
[1733189256245,2.65137794,3640.1,3637.5,5.30515588]
[1733189256246,0.55043295,3638.5,3638.3,2.65137794]
[1733189256451,0.7552,3639.1,3638.3,2.65377794]
[1733189256675,0.55164402,3638.7,3638.3,2.65377794]
[1733189257094,0.55164402,3638.7,3638.3,0.0024]
[1733189258589,0.55,3638.6,3638.3,0.0024]
[1733189260603,0.55164402,3638.7,3638.3,0.0024]
[1733189261108,0.55164402,3638.7,3638.4,2.65137794]
[1733189261323,0.55,3639.0,3638.4,2.65137794]
[1733189262268,0.55326441,3638.9,3638.4,2.65137794]
[1733189262468,0.73911085,3638.9,3638.4,2.65137794]
[1733189264726,0.73911085,3638.9,3638.3,0.0024]
[1733189264889,0.55,3638.8,3638.3,0.0024]
[1733189265790,0.73911085,3638.9,3638.4,2.65137794]
[1733189265986,0.73911085,3638.9,3638.3,0.0024]
[1733189265987,0.55326441,3638.9,3638.8,2.65137794]
[1733189266214,0.8143,3639.7,3638.8,2.65377794]
[1733189267031,0.53808575,3639.5,3638.8,2.65377794]
[1733189267405,0.53808575,3639.5,3639.3,2.65137794]
[1733189267619,0.53808575,3639.5,3639.3,2.65377794]
[1733189270039,1.3411,3639.4,3639.3,0.0024]
[1733189270248,1.52901858,3639.4,3639.3,0.0024]
[1733189270444,0.55,3639.3,3638.5,2.65137794]
[1733189272251,0.55,3639.3,3638.5,2.67937794]
[1733189275252,0.53808575,3639.5,3638.9,2.65137794]
[1733189276414,0.55,3639.4,3638.9,2.65137794]
[1733189276713,0.55,3639.4,3638.9,2.67937794]
[1733189276924,0.55,3639.4,3638.9,0.64130583]
[1733189277123,0.80554396,3639.4,3638.9,0.64130583]
[1733189277421,0.25554396,3639.3,3638.9,0.64130583]
[1733189277837,0.55,3639.4,3638.9,0.64130583]
[1733189278735,0.53808575,3639.5,3638.9,0.64130583]
[1733189279533,0.79362971,3639.5,3638.9,0.64130583]
[1733189279739,0.53808575,3639.5,3638.9,0.64130583]
[1733189280422,0.80554396,3639.4,3638.9,0.64130583]
[1733189280766,0.55,3639.2,3638.9,0.028]
[1733189280934,0.55,3639.0,3638.9,0.028]
[1733189281133,0.55,3639.2,3638.9,0.028]
[1733189281134,0.25554396,3639.2,3638.9,2.67937794]
[1733189281362,0.25554396,3639.4,3638.9,2.67937794]
[1733189281545,0.25554396,3639.3,3638.9,2.67937794]
[1733189281867,0.53808575,3639.5,3638.9,2.67937794]
[1733189281868,0.25554396,3639.4,3638.9,2.67937794]
[1733189282436,0.53808575,3639.5,3638.9,2.67937794]
[1733189282437,0.25554396,3639.3,3638.9,2.67937794]
[1733189282631,0.25554396,3639.4,3638.9,2.67937794]
[1733189282838,0.53808575,3639.5,3638.9,2.67937794]
[1733189283049,0.25644133,3639.4,3638.9,2.67937794]
[1733189283277,0.25644133,3639.3,3638.9,2.67937794]
[1733189283578,0.80644133,3639.2,3638.9,0.028]
[1733189283786,1.00924133,3639.1,3638.9,0.028]
[1733189283936,1.16516546,3639.1,3638.9,0.028]
[1733189284279,0.80644133,3639.0,3638.9,0.028]
[1733189285173,0.25644133,3639.0,3638.9,0.028]
[1733189288735,0.25644133,3639.0,3637.0,0.3]
[1733189288736,1.3663,3638.9,3637.4,2.65137794]
[1733189288934,2.65137794,3639.4,3637.0,2.65137794]
[1733189288935,1.318,3638.7,3637.0,2.65137794]
[1733189289173,0.55,3638.3,3637.0,2.65137794]
[1733189289407,0.55,3638.1,3637.0,2.65137794]
[1733189289908,0.55,3637.9,3637.0,2.65137794]
[1733189290203,0.5474064,3637.5,3637.0,2.65137794]
[1733189290412,0.25644133,3637.4,3637.0,2.67875569]
[1733189290699,0.25741451,3637.3,3637.0,2.67875569]
[1733189290910,0.25741451,3637.2,3637.0,2.67875569]
[1733189291117,0.25741451,3637.1,3637.0,2.67875569]
[1733189291462,0.5474064,3637.5,3637.0,2.67875569]
[1733189291712,0.25713591,3637.4,3637.0,2.67875569]
[1733189291891,0.25713591,3637.3,3637.0,2.67875569]
[1733189292062,0.25713591,3637.2,3637.0,2.67875569]
[1733189292264,0.5474064,3637.5,3637.0,2.67875569]
[1733189292506,0.25697215,3637.4,3637.0,2.67875569]
[1733189292717,0.2569774,3637.3,3637.0,2.67875569]
[1733189292918,0.25697121,3637.2,3637.0,0.02737775]
[1733189293206,0.5474064,3637.5,3637.0,0.02737775]
[1733189293413,0.25682266,3637.4,3637.0,0.02737775]
[1733189293561,0.25682266,3637.3,3637.0,0.02737775]
[1733189293761,0.25682266,3637.2,3637.0,0.02737775]
[1733189294007,0.15993291,3637.4,3637.0,0.02737775]
[1733189294207,0.25683384,3637.3,3637.0,0.02737775]
[1733189294515,0.41664146,3637.4,3637.0,0.02737775]
[1733189295013,0.17591479,3637.3,3637.0,0.02737775]
[1733189295970,0.7855,3637.1,3637.0,0.02737775]
[1733189297307,1.3355,3637.1,3637.0,0.02737775]
[1733189302985,0.7709,3636.9,3635.2,2.65137794]
[1733189303188,0.17591479,3637.3,3635.2,2.65137794]
[1733189303189,0.55,3636.6,3635.2,2.65137794]
[1733189303382,0.55,3636.6,3633.1,0.674923]
[1733189303383,0.55,3636.4,3634.4,2.65137794]
[1733189303579,1.3556,3636.2,3634.4,2.65137794]
[1733189303805,0.8056,3636.1,3634.4,2.65137794]
[1733189304108,0.55,3636.0,3634.4,2.65137794]
[1733189304520,0.55,3635.8,3634.4,2.65137794]
[1733189305512,0.55,3635.8,3634.4,2.70608983]
[1733189305679,0.55,3635.8,3634.5,0.28634726]
[1733189306014,0.56142166,3635.3,3634.5,0.31385583]
[1733189306378,0.56142166,3635.3,3634.5,0.28634726]
[1733189306783,0.56142166,3635.3,3634.5,0.31385581]
[1733189307318,0.56142166,3635.3,3634.8,2.65137794]
[1733189307478,0.56142166,3635.3,3634.8,2.94790132]
[1733189308291,0.805,3635.9,3634.9,3.0]
[1733189308496,0.7857,3636.7,3634.8,2.94790132]
[1733189308703,0.55,3636.6,3634.8,2.97510132]
[1733189308877,0.55,3636.5,3634.8,2.97510132]
[1733189309309,0.5426809,3635.6,3635.2,2.65137794]
[1733189309982,0.5426809,3635.6,3635.2,2.67857794]
[1733189310185,0.55,3636.5,3635.3,3.0]
[1733189310725,0.56388368,3635.8,3635.3,3.0]
[1733189311619,0.7685,3637.2,3635.6,2.65137794]
[1733189311831,0.55501706,3636.2,3635.7,3.0]
[1733189313517,0.56305692,3636.3,3635.7,3.23089264]
[1733189317921,0.56305692,3636.3,3635.8,0.0275006]
[1733189318236,0.56305692,3636.3,3635.8,0.0547006]
[1733189319014,0.56305692,3636.3,3635.8,0.0272]
[1733189320248,0.7935,3636.1,3635.8,0.0272]
[1733189320397,0.55,3636.0,3635.8,0.0272]
[1733189320601,0.74065569,3636.0,3635.8,0.0272]
[1733189323623,0.25657405,3635.9,3635.8,0.0272]
[1733189324431,0.74065569,3636.0,3635.8,0.0272]
[1733189324638,0.99726097,3636.0,3635.8,0.0272]
[1733189325113,0.74065569,3636.0,3635.8,0.0272]
[1733189325317,0.99729361,3636.0,3635.8,0.0272]
[1733189325531,0.17907936,3635.9,3635.8,0.0272]
[1733189325934,0.56305692,3636.3,3635.8,0.0272]
[1733189326742,1.06419743,3637.0,3636.0,2.65137794]
[1733189326972,0.25669743,3636.9,3636.1,0.02749844]
[1733189327113,0.56251255,3636.4,3636.1,3.02749844]
[1733189327313,0.56251255,3636.4,3636.1,3.05469844]
[1733189327552,0.56251255,3636.4,3636.1,3.59780764]
[1733189327721,0.25678887,3637.2,3636.1,3.59780764]
[1733189327917,0.7835,3637.4,3636.1,3.59780764]
[1733189327918,0.7835,3637.4,3636.5,3.0]
[1733189328259,0.55717207,3637.0,3636.5,3.0272]
[1733189333401,1.33757207,3637.0,3636.5,0.0272]
[1733189333697,1.423887,3638.2,3636.5,0.0272]
[1733189333698,0.7517,3637.4,3636.5,3.0272]
[1733189333900,0.7517,3637.4,3636.6,0.02749446]
[1733189336000,1.02580169,3637.8,3636.8,2.65137794]
[1733189336166,1.02580169,3638.1,3637.2,2.65137794]
[1733189336366,0.7692,3638.1,3637.2,2.67857794]
[1733189337057,0.54987147,3637.4,3637.2,2.67857794]
[1733189337266,0.54987147,3637.4,3637.2,2.91135008]
[1733189337996,1.59434556,3638.3,3637.3,0.02749049]
[1733189338218,1.59434556,3638.3,3637.3,3.0]
[1733189338632,0.55502823,3637.5,3637.3,3.02748728]
[1733189338781,0.55502823,3637.5,3637.3,3.0]
[1733189338987,0.55502823,3637.5,3637.3,3.0272]
[1733189339187,0.55502823,3637.5,3637.3,3.64744851]
[1733189342085,0.55502823,3637.5,3637.3,3.0272]
[1733189343196,0.55502823,3637.5,3637.3,0.0272]
[1733189344021,0.55,3637.4,3637.3,0.0272]
[1733189345319,1.3249,3637.4,3637.3,0.0272]
[1733189347589,0.81147028,3637.5,3637.3,0.0272]
[1733189347590,0.55502823,3637.5,3637.3,0.0272]
[1733189348734,0.25639669,3638.6,3637.3,0.0272]
[1733189348735,0.8197,3638.5,3637.3,3.32254775]
[1733189349032,0.8197,3638.5,3637.8,2.65137794]
[1733189349236,0.8197,3638.5,3637.8,2.67857794]
[1733189349390,0.8197,3638.5,3637.8,0.0272]
[1733189349801,0.55232381,3637.9,3637.8,0.0272]
[1733189351157,1.90092381,3637.9,3637.8,0.0272]
[1733189351451,2.09101619,3637.9,3637.8,0.0272]
[1733189357341,2.34803808,3637.9,3637.8,0.0272]
[1733189359244,2.09101619,3637.9,3637.8,0.0272]
[1733189359482,2.34817826,3637.9,3637.8,0.0272]
[1733189360163,0.55232381,3637.9,3637.8,0.0272]
[1733189360914,0.80951476,3637.9,3637.8,0.0272]
[1733189361644,1.35951476,3637.9,3637.8,0.0272]
[1733189362877,0.55,3637.8,3636.9,2.65137794]
[1733189363543,0.55,3637.6,3636.6,3.0]
[1733189363739,0.55,3637.6,3636.6,3.79295275]
[1733189365195,0.55,3637.6,3636.6,3.82015275]
[1733189365625,0.56234004,3636.8,3636.6,3.82015275]
[1733189365837,0.7645,3638.0,3636.7,0.02749424]
[1733189366137,0.7645,3638.4,3637.4,2.65137794]
[1733189366431,0.25723587,3638.3,3637.4,0.0272]
[1733189366609,0.25724091,3638.2,3637.4,0.0272]
[1733189366804,0.25723587,3638.3,3637.4,0.0272]
[1733189367007,0.25725091,3638.2,3637.4,0.0272]
[1733189367340,0.54271671,3637.5,3637.4,0.0272]
[1733189369178,0.79990458,3637.5,3637.4,0.0272]
[1733189369363,1.34990458,3637.5,3637.4,0.0272]
[1733189369564,1.09271671,3637.5,3637.4,0.0272]
[1733189369739,1.34995332,3637.5,3637.4,0.0272]
[1733189370140,1.09271671,3637.5,3637.4,0.0272]
[1733189370355,1.34995541,3637.5,3637.4,0.0272]
[1733189371082,0.54271671,3637.5,3637.4,0.0272]
[1733189374939,1.49473586,3637.5,3637.4,0.0272]
[1733189375140,2.64472898,3637.5,3637.4,0.0272]
[1733189375440,4.07351032,3637.5,3637.4,0.0272]
[1733189375654,2.64472898,3637.5,3637.4,0.0272]
[1733189375861,3.78788342,3637.5,3637.4,0.0272]
[1733189376086,0.25708981,3637.5,3637.4,0.0272]
[1733189376865,3.52990606,3637.6,3637.4,0.0272]
[1733189377046,0.95189031,3637.5,3637.4,0.0272]
[1733189378042,3.5297822,3637.6,3637.4,0.0272]
[1733189378240,0.55291702,3637.7,3637.4,0.0272]
[1733189378479,0.95184754,3637.6,3637.4,0.0272]
[1733189378837,0.55291702,3637.7,3637.4,0.0272]
[1733189380166,0.25721013,3637.6,3637.4,0.0272]
[1733189380477,0.25721013,3637.5,3637.4,0.0272]
[1733189380646,0.55291702,3637.7,3637.4,0.0272]
[1733189380847,0.25724604,3637.6,3637.4,0.0272]
[1733189381183,0.55,3637.4,3636.3,3.0]
[1733189381405,0.55,3637.4,3635.4,0.3]
[1733189381406,0.55,3637.2,3636.0,2.65137794]
[1733189381676,2.03313059,3637.1,3636.0,2.65137794]
[1733189381850,0.80719882,3637.0,3636.0,2.65137794]
[1733189382056,0.25719882,3636.9,3636.0,2.65137794]
[1733189382252,0.55,3637.0,3636.0,2.65137794]
[1733189382468,0.25710398,3636.9,3636.0,2.65137794]
[1733189382651,0.55,3637.0,3636.0,2.65137794]
[1733189382867,0.55,3637.0,3636.1,3.0]
[1733189383492,0.55999207,3636.3,3636.1,3.0]
[1733189387246,0.55999207,3636.3,3636.1,3.23855673]
[1733189389148,0.55999207,3636.3,3636.1,3.0]
[1733189393040,0.55999207,3636.3,3636.0,2.67875569]
[1733189393359,0.55999207,3636.3,3636.0,0.02737775]
[1733189395625,0.55,3636.2,3636.0,0.02737775]
[1733189396325,0.8136,3636.1,3636.0,0.02737775]
[1733189396529,1.00595921,3636.1,3636.0,0.02737775]
[1733189397421,1.55595921,3636.1,3636.0,0.02737775]
[1733189397747,0.55,3636.0,3635.3,3.0]